[Event "EYCC Girls-U12 2019"]
[Site "Bratislava"]
[Date "2019.08.10"]
[Round "9.7"]
[White "Manko, Mariya"]
[Black "Siekanska, Maria"]
[Result "1-0"]
[ECO "D34"]
[WhiteElo "1807"]
[BlackElo "1561"]
[Annotator "NA"]
[PlyCount "111"]
[EventDate "2019.08.02"]
[EventType "swiss"]
[EventCountry "SVK"]
[SourceTitle "playchess.com"]
[Source "ChessBase"]
[SourceQuality "1"]
[TimeControl "40/5400+30:1800+30"]

1. Nf3 {[%emt 0:00:00]} d5 {[%emt 0:00:00]} 2. c4 {[%emt 0:00:00]} e6 {[%emt 0:00:00]} 3. g3 {[%emt 0:00:00]} c5 {[%emt 0:00:14]} 4. Bg2 {[%emt 0:01:00]} Nc6 {[%emt 0:00:43]} 5. O-O {[%emt 0:01:07]} Nf6 {[%emt 0:00:27]} 6. cxd5 {[%emt 0:00:40]} exd5 {[%emt 0:00:18]} 7. d4 {[%emt 0:00:44]} Be7 {[%emt 0:00:59]} 8. Nc3 {[%emt 0:00:26]} O-O {[%emt 0:00:23]} 9. dxc5 {[%emt 0:10:38]} Bxc5 {[%emt 0:00:49]} 10. Bg5 {[%emt 0:07:56]} d4 {[%emt 0:01:26]} 11. Bxf6 {[%emt 0:03:18]} Qxf6 {[%emt 0:02:38]} 12. Ne4 {[%emt 0:00:42]} Qe7 {[%emt 0:01:55]} 13. Nxc5 {[%emt 0:02:16]} Qxc5 {[%emt 0:00:20]} 14. Rc1 {[%emt 0:00:57]} Qd6 {[%emt 0:03:00]} 15. Qa4 {[%emt 0:04:16]} Bg4 {[%emt 0:12:25]} 16. Rfd1 {[%emt 0:03:18]} Rad8 {[%emt 0:04:17]} 17. h3 {[%emt 0:02:12]} Bxf3 {[%emt 0:16:03]} 18. Bxf3 {[%emt 0:01:23]} Qe6 {[%emt 0:01:09]} 19. Kh2 {[%emt 0:05:01]} Ne5 {[%emt 0:02:10]} 20. Bg2 {[%emt 0:12:40]} d3 {[%emt 0:04:45]} 21. f4 {[%emt 0:09:20]} Nc6 {[%emt 0:02:38]} 22. exd3 {[%emt 0:01:33]} h5 {[%emt 0:18:26]} 23. d4 {[%emt 0:17:38]} Ne7 {[%emt 0:09:40]} 24. Qb4 {[%emt 0:04:32]} Nd5 {[%emt 0:01:49]} 25. Qd2 {[%emt 0:01:48]} h4 {[%emt 0:07:00]} 26. g4 {[%emt 0:02:54]} Rfe8 {[%emt 0:02:53]} 27. Re1 {[%emt 0:03:49]} Qd6 {[%emt 0:00:17]} 28. Re5 {[%emt 0:01:14]} Qb4 {[%emt 0:03:47]} 29. Qxb4 {[%emt 0:02:07]} Nxb4 {[%emt 0:00:00]} 30. Rxe8+ {[%emt 0:00:50]} Rxe8 {[%emt 0:00:01]} 31. d5 {[%emt 0:00:37]} Nd3 {[%emt 0:01:13]} 32. Rc4 {[%emt 0:00:33]} b5 {[%emt 0:01:18]} 33. Rd4 {[%emt 0:00:23]} Nxb2 {[%emt 0:00:50]} 34. d6 {[%emt 0:00:12]} Rd8 {[%emt 0:01:40]} 35. d7 {[%emt 0:00:14]} Na4 {[%emt 0:01:00]} 36. Bc6 {[%emt 0:00:27]} Nc5 {[%emt 0:00:43]} 37. Bxb5 {[%emt 0:01:06]} a6 {[%emt 0:00:43]} 38. Bc6 {[%emt 0:00:15]} f6 {[%emt 0:00:01]} 39. Rd5 {[%emt 0:00:46]} Ne6 {[%emt 0:00:02]} 40. f5 {[%emt 0:00:00]} Ng5 {[%emt 0:00:00]} 41. Ra5 {[%emt 0:10:23]} Kf7 {[%emt 0:07:02]} 42. Rxa6 {[%emt 0:00:51]} Ke7 {[%emt 0:00:14]} 43. Rb6 {[%emt 0:02:54]} Nf7 {[%emt 0:01:12]} 44. Kg2 {[%emt 0:01:14]} Ne5 {[%emt 0:00:37]} 45. Bb5 {[%emt 0:00:15]} g5 {[%emt 0:05:43]} 46. Re6+ {[%emt 0:00:36]} Kf7 {[%emt 0:00:15]} 47. Re8 {[%emt 0:00:12]} Rxd7 {[%emt 0:00:11]} 48. Bxd7 {[%emt 0:00:12]} Nxd7 {[%emt 0:00:01]} 49. Ra8 {[%emt 0:00:40]} Ke7 {[%emt 0:00:22]} 50. Kf3 {[%emt 0:00:10]} Kd6 {[%emt 0:00:08]} 51. Ke4 {[%emt 0:00:44]} Kc5 {[%emt 0:00:31]} 52. a4 {[%emt 0:01:37]} Kc4 {[%emt 0:00:09]} 53. a5 {[%emt 0:00:18]} Nc5+ {[%emt 0:00:05]} 54. Ke3 {[%emt 0:00:06]} Kb5 {[%emt 0:01:00]} 55. Kd4 {[%emt 0:00:17]} Nb3+ {[%emt 0:00:08]} 56. Ke4 1-0

[Event "EYCC Girls-U12 2019"]
[Site "Bratislava"]
[Date "2019.08.10"]
[Round "9.8"]
[White "Korovina, Yana"]
[Black "Karmanova, Olga Dm."]
[Result "1-0"]
[ECO "B10"]
[WhiteElo "1602"]
[BlackElo "1838"]
[Annotator "NA"]
[PlyCount "111"]
[EventDate "2019.08.02"]
[EventType "swiss"]
[EventCountry "SVK"]
[SourceTitle "playchess.com"]
[Source "ChessBase"]
[SourceQuality "1"]
[TimeControl "40/5400+30:1800+30"]

1. e4 {[%emt 0:00:00]} c6 {[%emt 0:00:00]} 2. Nf3 {[%emt 0:00:07]} d5 {[%emt 0:00:00]} 3. d3 {[%emt 0:00:29]} dxe4 {[%emt 0:00:07]} 4. Ng5 {[%emt 0:00:28]} Nf6 {[%emt 0:02:19]} 5. Nc3 {[%emt 0:00:43]} Bg4 {[%emt 0:04:29]} 6. Qd2 {[%emt 0:01:15]} e6 {[%emt 0:04:37]} 7. Ngxe4 {[%emt 0:01:10]} Bb4 {[%emt 0:14:01]} 8. a3 {[%emt 0:09:09]} Be7 {[%emt 0:10:09]} 9. Be2 {[%emt 0:04:07]} Bf5 {[%emt 0:01:39]} 10. Bf3 {[%emt 0:06:36]} Nbd7 {[%emt 0:03:30]} 11. Qf4 {[%emt 0:03:46]} Nb6 {[%emt 0:03:53]} 12. Nxf6+ {[%emt 0:04:21]} Bxf6 {[%emt 0:04:53]} 13. Ne4 {[%emt 0:01:51]} Be7 {[%emt 0:04:56]} 14. Qg3 {[%emt 0:04:20]} Bg6 {[%emt 0:12:18]} 15. h4 {[%emt 0:04:45]} h5 {[%emt 0:04:16]} 16. Bf4 {[%emt 0:03:35]} Bxe4 {[%emt 0:08:01]} 17. Bxe4 {[%emt 0:01:55]} Nd5 {[%emt 0:01:54]} 18. Bxd5 {[%emt 0:05:55]} Qxd5 {[%emt 0:01:13]} 19. Qxg7 {[%emt 0:02:21]} O-O-O {[%emt 0:02:53]} 20. Qe5 {[%emt 0:02:11]} Bd6 {[%emt 0:00:39]} 21. Qxd5 {[%emt 0:00:53]} cxd5 {[%emt 0:00:21]} 22. Bxd6 {[%emt 0:02:11]} Rxd6 {[%emt 0:00:02]} 23. Kd2 {[%emt 0:02:15]} Rg8 {[%emt 0:00:23]} 24. g3 {[%emt 0:01:09]} Rb6 {[%emt 0:00:21]} 25. Rab1 {[%emt 0:02:32]} Kd7 {[%emt 0:00:21]} 26. Rhe1 {[%emt 0:01:06]} f5 {[%emt 0:01:00]} 27. Re5 {[%emt 0:02:55]} Rc8 {[%emt 0:01:14]} 28. d4 {[%emt 0:01:49]} Rbc6 {[%emt 0:00:05]} 29. c3 {[%emt 0:00:12]} b5 {[%emt 0:00:24]} 30. Re3 {[%emt 0:03:05]} a5 {[%emt 0:00:55]} 31. b4 {[%emt 0:01:22]} axb4 {[%emt 0:01:04]} 32. Rxb4 {[%emt 0:00:29]} Ra8 {[%emt 0:01:01]} 33. Rxb5 {[%emt 0:00:27]} Rxa3 {[%emt 0:00:45]} 34. Rb7+ {[%emt 0:00:20]} Kd6 {[%emt 0:01:02]} 35. Rh7 {[%emt 0:02:33]} Rca6 {[%emt 0:01:07]} 36. Rxh5 {[%emt 0:02:22]} Ra1 {[%emt 0:00:38]} 37. Rf3 {[%emt 0:00:55]} R6a2+ {[%emt 0:00:57]} 38. Ke3 {[%emt 0:00:23]} Re1+ {[%emt 0:00:04]} 39. Kf4 {[%emt 0:00:30]} Re4+ {[%emt 0:01:20]} 40. Kg5 {[%emt 0:00:00]} Ra8 {[%emt 0:00:00]} 41. Rf4 {[%emt 0:02:21]} Rg8+ {[%emt 0:02:58]} 42. Kf6 {[%emt 0:00:18]} Re2 {[%emt 0:09:29]} 43. Rh7 {[%emt 0:02:32]} Rb2 {[%emt 0:01:15]} 44. h5 {[%emt 0:01:15]} Rf8+ {[%emt 0:02:12]} 45. Rf7 {[%emt 0:01:21]} Rh8 {[%emt 0:00:39]} 46. Kg6 {[%emt 0:00:52]} Rb3 {[%emt 0:02:20]} 47. h6 {[%emt 0:03:13]} Rxc3 {[%emt 0:00:03]} 48. h7 {[%emt 0:01:05]} Rcc8 {[%emt 0:00:07]} 49. g4 {[%emt 0:00:17]} Rb8 {[%emt 0:00:50]} 50. gxf5 {[%emt 0:00:18]} e5 {[%emt 0:00:11]} 51. Rf6+ {[%emt 0:00:29]} Ke7 {[%emt 0:00:02]} 52. dxe5 {[%emt 0:00:13]} d4 {[%emt 0:00:36]} 53. Rxd4 {[%emt 0:00:55]} Rb1 {[%emt 0:01:09]} 54. Rf7+ {[%emt 0:00:41]} Ke8 {[%emt 0:00:22]} 55. Rfd7 {[%emt 0:00:31]} Rg1+ {[%emt 0:00:47]} 56. Kf6 {[%emt 0:00:17]} 1-0

[Event "EYCC Girls-U12 2019"]
[Site "Bratislava"]
[Date "2019.08.10"]
[Round "9.9"]
[White "Berezovsky, Fiorina"]
[Black "Zhou, Lepu Coco"]
[Result "1/2-1/2"]
[ECO "E62"]
[WhiteElo "1591"]
[BlackElo "1861"]
[Annotator "NA"]
[PlyCount "89"]
[EventDate "2019.08.02"]
[EventType "swiss"]
[EventCountry "SVK"]
[SourceTitle "playchess.com"]
[Source "ChessBase"]
[SourceQuality "1"]
[TimeControl "40/5400+30:1800+30"]

1. Nf3 {[%emt 0:00:19]} Nf6 {[%emt 0:00:00]} 2. c4 {[%emt 0:00:32]} g6 {[%emt 0:00:07]} 3. g3 {[%emt 0:00:31]} Bg7 {[%emt 0:00:31]} 4. Bg2 {[%emt 0:00:51]} O-O {[%emt 0:00:28]} 5. d4 {[%emt 0:01:19]} d6 {[%emt 0:01:01]} 6. O-O {[%emt 0:01:01]} Nc6 {[%emt 0:03:44]} 7. Nc3 {[%emt 0:01:23]} Bg4 {[%emt 0:00:37]} 8. h3 {[%emt 0:04:58]} Bxf3 {[%emt 0:00:31]} 9. Bxf3 {[%emt 0:00:29]} Qd7 {[%emt 0:01:29]} 10. Kh2 {[%emt 0:05:16]} e5 {[%emt 0:01:37]} 11. e3 {[%emt 0:05:18]} Rad8 {[%emt 0:04:40]} 12. d5 {[%emt 0:03:00]} Ne7 {[%emt 0:02:39]} 13. e4 {[%emt 0:03:52]} Ne8 {[%emt 0:05:33]} 14. g4 {[%emt 0:05:28]} f5 {[%emt 0:02:43]} 15. b4 {[%emt 0:02:34]} Nf6 {[%emt 0:03:08]} 16. a4 {[%emt 0:05:14]} fxe4 {[%emt 0:04:36]} 17. Nxe4 {[%emt 0:01:41]} Nxe4 {[%emt 0:00:51]} 18. Bxe4 {[%emt 0:00:03]} Kh8 {[%emt 0:02:53]} 19. Be3 {[%emt 0:03:58]} b6 {[%emt 0:06:09]} 20. b5 {[%emt 0:02:24]} Ng8 {[%emt 0:00:27]} 21. Qd2 {[%emt 0:03:13]} Nf6 {[%emt 0:04:50]} 22. f3 {[%emt 0:02:11]} Rf7 {[%emt 0:02:11]} 23. Rf2 {[%emt 0:03:51]} Rdf8 {[%emt 0:02:09]} 24. Raf1 {[%emt 0:01:51]} Qc8 {[%emt 0:02:45]} 25. Kg2 {[%emt 0:05:07]} a5 {[%emt 0:03:38]} 26. Bb1 {[%emt 0:04:48]} Nd7 {[%emt 0:03:01]} 27. Qc2 {[%emt 0:01:17]} Qd8 {[%emt 0:05:56]} 28. h4 {[%emt 0:04:07]} Bf6 {[%emt 0:11:11]} 29. g5 {[%emt 0:11:46]} Be7 {[%emt 0:02:33]} 30. Rh1 {[%emt 0:02:55]} Rg7 {[%emt 0:03:47]} 31. Qe4 {[%emt 0:02:38]} Nc5 {[%emt 0:01:29]} 32. Bxc5 {[%emt 0:02:15]} Rf4 {[%emt 0:01:32]} 33. Qxf4 {[%emt 0:06:12]} exf4 {[%emt 0:00:10]} 34. Bd4 {[%emt 0:00:04]} Bf8 {[%emt 0:02:50]} 35. Re2 {[%emt 0:01:15]} Kg8 {[%emt 0:00:57]} 36. Bxg7 {[%emt 0:00:07]} Bxg7 {[%emt 0:00:04]} 37. Rhe1 {[%emt 0:00:13]} Be5 {[%emt 0:00:15]} 38. Bd3 {[%emt 0:00:54]} Kf7 {[%emt 0:02:13]} 39. Kh2 {[%emt 0:01:06]} Kg7 {[%emt 0:05:56]} 40. Re4 {[%emt 0:00:00]} Kf7 {[%emt 0:00:00]} 41. Rg1 {[%emt 0:02:52]} h5 {[%emt 0:08:39]} 42. Bf1 {[%emt 0:00:33]} Kg7 {[%emt 0:02:07]} 43. Bh3 {[%emt 0:00:23]} Qf8 {[%emt 0:01:11]} 44. Be6 {[%emt 0:00:35]} Qe7 {[%emt 0:01:04]} 45. Rge1 {[%emt 0:00:35]} 1/2-1/2

[Event "EYCC Girls-U12 2019"]
[Site "Bratislava"]
[Date "2019.08.10"]
[Round "9.10"]
[White "Tran, Alva Ling"]
[Black "Tsirekidze, Barbare"]
[Result "0-1"]
[ECO "C10"]
[WhiteElo "1712"]
[BlackElo "1527"]
[Annotator "NA"]
[PlyCount "82"]
[EventDate "2019.08.02"]
[EventType "swiss"]
[EventCountry "SVK"]
[SourceTitle "playchess.com"]
[Source "ChessBase"]
[SourceQuality "1"]
[TimeControl "40/5400+30:1800+30"]

1. e4 {[%emt 0:00:00]} e6 {[%emt 0:00:00]} 2. d4 {[%emt 0:00:00]} d5 {[%emt 0:00:00]} 3. Nc3 {[%emt 0:00:00]} dxe4 {[%emt 0:00:00]} 4. Nxe4 {[%emt 0:00:00]} Nd7 {[%emt 0:00:00]} 5. Nf3 {[%emt 0:00:55]} Ngf6 {[%emt 0:00:01]} 6. Bd3 {[%emt 0:00:37]} Be7 {[%emt 0:01:58]} 7. O-O {[%emt 0:01:00]} O-O {[%emt 0:00:18]} 8. Bf4 {[%emt 0:04:31]} Nxe4 {[%emt 0:00:57]} 9. Bxe4 {[%emt 0:00:12]} Nf6 {[%emt 0:00:27]} 10. Bd3 {[%emt 0:00:50]} b6 {[%emt 0:01:18]} 11. c3 {[%emt 0:07:41]} Bb7 {[%emt 0:00:25]} 12. Ne5 {[%emt 0:01:47]} c5 {[%emt 0:06:20]} 13. dxc5 {[%emt 0:10:18]} bxc5 {[%emt 0:00:22]} 14. Qc2 {[%emt 0:05:27]} h6 {[%emt 0:02:58]} 15. Nc4 {[%emt 0:05:00]} Nd5 {[%emt 0:14:40]} 16. Rad1 {[%emt 0:04:27]} Qc8 {[%emt 0:04:20]} 17. Bg3 {[%emt 0:01:43]} Ba6 {[%emt 0:11:16]} 18. Rfe1 {[%emt 0:04:29]} Qb7 {[%emt 0:10:43]} 19. Qb3 {[%emt 0:12:29]} Qxb3 {[%emt 0:11:17]} 20. axb3 {[%emt 0:00:07]} h5 {[%emt 0:11:22]} 21. Ra1 {[%emt 0:05:07]} Bxc4 {[%emt 0:06:55]} 22. Bxc4 {[%emt 0:02:56]} Nb6 {[%emt 0:00:40]} 23. Be2 {[%emt 0:04:19]} h4 {[%emt 0:01:28]} 24. Bf4 {[%emt 0:03:11]} Nd5 {[%emt 0:01:07]} 25. Bd2 {[%emt 0:04:00]} Bf6 {[%emt 0:04:46]} 26. Ra5 {[%emt 0:05:19]} Rab8 {[%emt 0:01:24]} 27. Bd1 {[%emt 0:00:55]} Rfd8 {[%emt 0:01:10]} 28. Rxc5 {[%emt 0:02:16]} Nb4 {[%emt 0:00:51]} 29. cxb4 {[%emt 0:06:54]} Rxd2 {[%emt 0:00:06]} 30. Kf1 {[%emt 0:03:18]} Rbd8 {[%emt 0:03:07]} 31. Be2 {[%emt 0:00:52]} Rxb2 {[%emt 0:01:03]} 32. Rc7 {[%emt 0:02:08]} Rdd2 {[%emt 0:01:11]} 33. Rxa7 {[%emt 0:01:00]} Bc3 {[%emt 0:00:13]} 34. g3 {[%emt 0:00:57]} h3 {[%emt 0:00:41]} 35. f3 {[%emt 0:00:52]} Rxe2 {[%emt 0:00:48]} 36. Ra8+ {[%emt 0:00:24]} Kh7 {[%emt 0:00:03]} 37. Rxe2 {[%emt 0:00:52]} Rb1+ {[%emt 0:00:03]} 38. Kf2 {[%emt 0:00:29]} Bd4+ {[%emt 0:00:04]} 39. Re3 {[%emt 0:00:17]} Rb2+ {[%emt 0:00:05]} 40. Kf1 {[%emt 0:00:00]} Bxe3 {[%emt 0:00:00]} 41. b5 {[%emt 0:02:50]} Rxh2 {[%emt 0:00:15]} 0-1

[Event "EYCC Girls-U12 2019"]
[Site "Bratislava"]
[Date "2019.08.10"]
[Round "9.11"]
[White "Suarez Gomez, Paula"]
[Black "Putar, Lara"]
[Result "1-0"]
[ECO "B01"]
[WhiteElo "1438"]
[BlackElo "1608"]
[Annotator "NA RC"]
[PlyCount "119"]
[EventDate "2019.08.02"]
[EventType "swiss"]
[EventCountry "SVK"]
[SourceTitle "playchess.com"]
[Source "ChessBase"]
[SourceQuality "1"]
[TimeControl "40/5400+30:1800+30"]

1. e4 {[%emt 0:00:00]} d5 {[%emt 0:00:00]} 2. exd5 {[%emt 0:00:00]} Nf6 {[%emt 0:00:00]} 3. d4 {[%emt 0:00:38]} Bg4 {[%emt 0:01:31]} 4. Nf3 {[%emt 0:02:29]} Qxd5 {[%emt 0:02:39]} 5. Be2 {[%emt 0:02:37]} e5 {[%emt 0:02:44]} 6. c4 {[%emt 0:11:27]} Qa5+ {[%emt 0:03:57]} 7. Bd2 {[%emt 0:01:24]} Qb6 {[%emt 0:06:10]} 8. Nxe5 {[%emt 0:03:11]} Bf5 {[%emt 0:09:58]} 9. Bc3 {[%emt 0:22:04]} Ne4 {[%emt 0:09:43]} 10. Nd2 {[%emt 0:05:43]} Nxc3 {[%emt 0:01:58]} 11. bxc3 {[%emt 0:00:26]} Nd7 {[%emt 0:05:19]} 12. Nxd7 {[%emt 0:07:32]} Bxd7 {[%emt 0:00:12]} 13. O-O {[%emt 0:02:47]} Be7 {[%emt 0:03:52]} 14. Qc2 {[%emt 0:03:40]} O-O {[%emt 0:02:13]} 15. Rab1 {[%emt 0:01:07]} Qa6 {[%emt 0:01:58]} 16. Bd3 {[%emt 0:00:59]} Qh6 {[%emt 0:02:33]} 17. Be4 {[%emt 0:11:35]} Bd6 {[%emt 0:02:09]} 18. g3 {[%emt 0:01:56]} Rab8 {[%emt 0:03:15]} 19. c5 {[%emt 0:04:50]} Be7 {[%emt 0:00:39]} 20. Bxb7 {[%emt 0:00:45]} c6 {[%emt 0:04:59]} 21. Ba6 {[%emt 0:00:05]} Bg4 {[%emt 0:02:23]} 22. Rfe1 {[%emt 0:03:15]} Rxb1 {[%emt 0:03:58]} 23. Nxb1 {[%emt 0:01:22]} Bg5 {[%emt 0:03:12]} 24. h4 {[%emt 0:02:36]} Bd8 {[%emt 0:01:34]} 25. Qd2 {[%emt 0:00:36]} Qg6 {[%emt 0:00:57]} 26. Bd3 {[%emt 0:00:12]} f5 {[%emt 0:01:16]} 27. Qc2 {[%emt 0:03:26]} Bxh4 {[%emt 0:02:20]} 28. Qb3+ {[%emt 0:00:57]} Kh8 {[%emt 0:00:19]} 29. Qe6 {[%emt 0:00:55]} Bf6 {[%emt 0:01:50]} 30. Qxc6 {[%emt 0:00:29]} Qh5 {[%emt 0:01:34]} 31. Qh1 {[%emt 0:00:23]} Re8 {[%emt 0:00:06]} 32. Rxe8+ {[%emt 0:02:04]} Qxe8 {[%emt 0:00:02]} 33. Kf1 {[%emt 0:00:02]} h6 {[%emt 0:00:59]} 34. Qb7 {[%emt 0:01:40]} Bh3+ {[%emt 0:00:26]} 35. Kg1 {[%emt 0:00:01]} Qe1+ {[%emt 0:01:26]} 36. Kh2 {[%emt 0:00:06]} Bg4 {[%emt 0:01:19]} 37. Qg2 {[%emt 0:01:11]} Kh7 {[%emt 0:03:01]} 38. f3 {[%emt 0:00:58]} Bh5 {[%emt 0:01:03]} 39. Bxf5+ {[%emt 0:00:31]} Bg6 {[%emt 0:00:20]} 40. Bxg6+ {[%emt 0:00:00]} Kxg6 {[%emt 0:00:00]} 41. Qc2+ {[%emt 0:00:09]} Kf7 {[%emt 0:00:26]} 42. d5 {[%emt 0:01:56]} Be5 {[%emt 0:01:00]} 43. f4 {[%emt 0:05:09]} Bxf4 {[%emt 0:01:17]} 44. gxf4 {[%emt 0:03:49]} Qh4+ {[%emt 0:00:12]} 45. Kg2 {[%emt 0:00:13]} Qg4+ {[%emt 0:00:12]} 46. Kf1 {[%emt 0:01:28]} Qf3+ {[%emt 0:01:12]} 47. Ke1 {[%emt 0:01:34]} Qe3+ {[%emt 0:00:25]} 48. Kd1 {[%emt 0:00:45]} Qxf4 {[%emt 0:01:41]} 49. Nd2 {[%emt 0:04:18]} Qg4+ {[%emt 0:00:20]} 50. Kc1 {[%emt 0:01:32]} Qg1+ {[%emt 0:00:13]} 51. Kb2 {[%emt 0:01:01]} Qxc5 {[%emt 0:00:20]} 52. Qf5+ {[%emt 0:01:04]} Kg8 {[%emt 0:00:15]} 53. Qe6+ {[%emt 0:00:18]} Kf8 {[%emt 0:00:48]} 54. d6 {[%emt 0:01:25]} Qb6+ {[%emt 0:01:04]} 55. Nb3 {[%emt 0:00:36]} Qd8 {[%emt 0:01:22]} 56. d7 {[%emt 0:01:40]} Qe7 {[%emt 0:01:29]} 57. Qf5+ {[%emt 0:01:03]} Kg8 {[%emt 0:00:24]} 58. Qd5+ {[%emt 0:00:10]} Kh7 {[%emt 0:00:17]} 59. Qd3+ {[%emt 0:00:14]} Kh8 {[%emt 0:01:19]} 60. d8=Q+ {[%emt 0:00:07]} 1-0

[Event "EYCC Girls-U12 2019"]
[Site "Bratislava"]
[Date "2019.08.10"]
[Round "9.12"]
[White "Ivanova, Dilyana"]
[Black "Gadasi, Noam"]
[Result "1-0"]
[ECO "B76"]
[WhiteElo "1734"]
[BlackElo "1585"]
[Annotator "NA RC"]
[PlyCount "103"]
[EventDate "2019.08.02"]
[EventType "swiss"]
[EventCountry "SVK"]
[SourceTitle "playchess.com"]
[Source "ChessBase"]
[SourceQuality "1"]
[TimeControl "40/5400+30:1800+30"]

1. e4 {[%emt 0:00:00]} c5 {[%emt 0:00:00]} 2. Nf3 {[%emt 0:00:00]} d6 {[%emt 0:00:00]} 3. d4 {[%emt 0:00:00]} cxd4 {[%emt 0:00:00]} 4. Nxd4 {[%emt 0:00:00]} Nf6 {[%emt 0:00:08]} 5. Nc3 {[%emt 0:00:00]} g6 {[%emt 0:00:13]} 6. Be3 {[%emt 0:00:00]} Bg7 {[%emt 0:00:13]} 7. f3 {[%emt 0:00:03]} O-O {[%emt 0:00:12]} 8. Qd2 {[%emt 0:00:05]} Nc6 {[%emt 0:00:21]} 9. g4 {[%emt 0:00:06]} Nxd4 {[%emt 0:01:46]} 10. Bxd4 {[%emt 0:00:08]} Be6 {[%emt 0:00:18]} 11. h4 {[%emt 0:03:56]} Qa5 {[%emt 0:04:20]} 12. h5 {[%emt 0:06:27]} Rab8 {[%emt 0:10:53]} 13. hxg6 {[%emt 0:08:04]} hxg6 {[%emt 0:00:44]} 14. g5 {[%emt 0:12:07]} Nh5 {[%emt 0:03:56]} 15. Bxg7 {[%emt 0:06:20]} Kxg7 {[%emt 0:01:05]} 16. Bh3 {[%emt 0:01:37]} Qe5 {[%emt 0:07:58]} 17. O-O-O {[%emt 0:04:18]} Rh8 {[%emt 0:21:31]} 18. Bxe6 {[%emt 0:12:12]} fxe6 {[%emt 0:02:05]} 19. Ne2 {[%emt 0:03:28]} Ng3 {[%emt 0:05:00]} 20. Nxg3 {[%emt 0:01:10]} Qxg3 {[%emt 0:00:06]} 21. f4 {[%emt 0:03:47]} Rbf8 {[%emt 0:15:22]} 22. Rxh8 {[%emt 0:11:52]} Rxh8 {[%emt 0:00:11]} 23. Rf1 {[%emt 0:02:33]} Rh4 {[%emt 0:07:43]} 24. b3 {[%emt 0:07:13]} Rh2 {[%emt 0:03:17]} 25. Qd4+ {[%emt 0:00:54]} e5 {[%emt 0:05:57]} 26. fxe5 {[%emt 0:01:22]} Qxg5+ {[%emt 0:00:13]} 27. Kb1 Qxe5 {[%emt 0:03:02]} 28. Qc4 {[%emt 0:00:38]} Kh6 {[%emt 0:02:50]} 29. Qf7 {[%emt 0:00:43]} Rh5 {[%emt 0:00:50]} 30. Qf8+ {[%emt 0:01:20]} Qg7 {[%emt 0:00:10]} 31. Qb8 {[%emt 0:00:44]} b5 {[%emt 0:04:16]} 32. Qxa7 {[%emt 0:00:21]} g5 {[%emt 0:00:12]} 33. a4 {[%emt 0:01:41]} bxa4 {[%emt 0:00:20]} 34. Qxa4 {[%emt 0:00:34]} g4 {[%emt 0:00:17]} 35. Qc4 {[%emt 0:01:24]} Qg6 {[%emt 0:01:23]} 36. b4 {[%emt 0:01:04]} Re5 {[%emt 0:00:26]} 37. Rh1+ {[%emt 0:01:28]} Kg7 {[%emt 0:00:04]} 38. Qc8 {[%emt 0:00:18]} Rh5 {[%emt 0:00:59]} 39. Rf1 {[%emt 0:00:36]} Kh7 {[%emt 0:00:34]} 40. Rf8 {[%emt 0:00:00]} Rh1+ {[%emt 0:00:00]} 41. Ka2 {[%emt 0:01:43]} Qxe4 {[%emt 0:08:53]} 42. Rf7+ {[%emt 0:10:37]} Kh6 {[%emt 0:02:10]} 43. Qh8+ {[%emt 0:00:49]} Kg5 {[%emt 0:01:50]} 44. Qg8+ {[%emt 0:00:30]} Qg6 {[%emt 0:04:34]} 45. Rg7 {[%emt 0:00:21]} Qxg7 {[%emt 0:01:02]} 46. Qxg7+ {[%emt 0:00:07]} Kf4 {[%emt 0:00:04]} 47. b5 {[%emt 0:03:06]} g3 {[%emt 0:01:23]} 48. Qd4+ {[%emt 0:03:49]} Kf3 {[%emt 0:01:41]} 49. Qd5+ {[%emt 0:00:06]} Kf2 {[%emt 0:00:02]} 50. Qxh1 {[%emt 0:00:07]} g2 {[%emt 0:00:18]} 51. Qh2 {[%emt 0:02:07]} Kf1 {[%emt 0:00:12]} 52. b6 1-0